Cogmind - Beta 13 @@@ ROGUE MODE // 2024.05.26 @ 23:23:36 Player: pakman Result: Destroyed by D-53 Grenadier with Mini Grenade Launcher Performance ------------- Evolutions (0) 0 Regions Visited (2) 400 Robots Destroyed (13) 65 Value Destroyed (205) 205 Prototype IDs (0) 0 Alien Tech Used (0) 0 Bonus (0) 0 TOTAL SCORE: 670 Bonus ------- None Cogmind --------- Core Integrity 0/250 Matter 300/300 Energy 100/100 System Corruption 0% Temperature Cool (0) Movement Core (100) Ox1 Location -10/Mines Parts ------- > --- POWER (1) -------- (None) > --- PROPULSION (2) --- (None) > --- UTILITY (2) ------ Small Storage Unit Terrain Scanner > --- WEAPON (2) ------- (None) > --- INVENTORY (8) ---- Light Ion Engine Light Treads Light Treads Aluminum Leg Aluminum Leg EM Pulse Gun Assault Rifle Mining Laser Peak State ------------ > --- POWER ------------ Light Ion Engine > --- PROPULSION ------- Compact Wheel Compact Wheel > --- UTILITY ---------- Small Storage Unit Terrain Scanner > --- WEAPON ----------- Small Laser Particle Gun > --- INVENTORY -------- Light Ion Engine Light Treads Light Treads Aluminum Leg Aluminum Leg EM Pulse Gun Assault Rifle Mining Laser [Rating: 8] Favorites ----------- Power Light Ion Engine Engine Light Ion Engine Propulsion Compact Wheel Wheel Compact Wheel Utility Small Storage Unit Device Terrain Scanner Storage Small Storage Unit Weapon Small Laser Energy Gun Small Laser Ballistic Gun Light Assault Rifle Ballistic Cannon Light Cannon Special Weapon Mining Laser Build | -11 -10 -10 ------- Run | Yrd Mat Min Slots Evolved . | . . . Power . | . . . Propulsion . | . . . Utility . | . . . Weapon . | . . . Parts Attached 18 | 7 4 7 Power 3 | 1 1 1 Engine 3 | 1 1 1 Core . | . . . Reactor . | . . . Propulsion 2 | 2 . . Treads . | . . . Leg . | . . . Wheel 2 | 2 . . Hover . | . . . Flight . | . . . Utility 3 | 2 . 1 Device 2 | 1 . 1 Storage 1 | 1 . . Processor . | . . . Hackware . | . . . Protection . | . . . Artifact . | . . . Weapon 10 | 2 3 5 Energy Gun 5 | 2 . 3 Energy Cannon . | . . . Ballistic Gun 1 | . . 1 Ballistic Cannon 1 | . 1 . Launcher . | . . . Special Weapon 3 | . 2 1 Impact Weapon . | . . . Slashing Weapon . | . . . Piercing Weapon . | . . . Special Melee Weapon . | . . . Unidentified Prototypes . | . . . Parts Lost 7 | . . 7 Power 1 | . . 1 Propulsion 2 | . . 2 Utility 1 | . . 1 Weapon 3 | . . 3 Highest Loss Streak 5 | . . 5 To Critical Strikes . | . . . Average Slot Usage (%) 97 | . 100 96 Engine 13 | . 14 13 Wheel 27 | . 28 27 Device 12 | . 14 12 Storage 14 | . 14 14 Energy Gun 22 | . 15 24 Ballistic Cannon 1 | . 3 . Special Weapon 2 | . 9 . Naked Turns . | . . . Heaviest Build 14 | 11 13 14 Greatest Support 32 | 32 32 32 Greatest Overweight (x) 2 | . . 2 Average Overweight (x) . | . . . Largest Inventory Capacity 8 | 8 8 8 Average Capacity 7 | 7 8 8 Most Carried 8 | 6 8 8 Average Carried 7 | 4 7 7 Final Capacity 8 | 8 8 8 Final Carried 8 | 6 8 8 Class Distribution -------------------- 95% | Mutant 4% | Scavenger-Mutant Dominant Class ---------------- Mutant | -10/Materials Mutant | -10/Mines Resources | -11 -10 -10 ----------- Run | Yrd Mat Min Matter Collected 397 | 260 39 98 Remotely . | . . . Salvage Created 377 | 18 106 253 Parts 30 | 4 8 18 Haulers Intercepted . | . . . Recyclers Shooed . | . . . Parts Field Recycled . | . . . Retrieved Matter . | . . . Parts Self-Destructed . | . . . Prevented . | . . . Kills | -11 -10 -10 ------- Run | Yrd Mat Min Combat Hostiles Destroyed 8 | . 2 6 Guns 6 | . 2 4 Cannons 1 | . . 1 AOE 1 | . . 1 Classes Destroyed 6 | 1 3 2 Builder 1 | . . 1 Tunneler 1 | 1 . . Recycler 2 | . 1 1 Watcher 1 | . 1 . Swarmer 5 | . 2 3 Grunt 3 | . . 3 Best Kill Streak 4 | 1 4 3 Combat Bots Only 3 | . 2 3 Max Kills in Single Turn 2 | 1 2 1 Gunslinging . | . . . Exploded 1 | . . 1 Melee . | . . . Uniques/NPCs Destroyed . | . . . Combat | -11 -10 -10 -------- Run | Yrd Mat Min Hostile Shots Fired 51 | . 12 39 Missed 8 | . 2 6 Damage Taken 689 | . 91 598 Core 270 | . 33 237 Absorbed by Shields . | . . . Core Remaining (%) 100 | 100 . . Volleys Fired 45 | 7 10 28 Largest 2 | 2 2 2 Hottest 105 | 80 100 105 Shots Fired 77 | 14 14 49 Gun 53 | 14 4 35 Cannon 11 | . 4 7 Launcher . | . . . Special 13 | . 6 7 Kinetic 11 | . 4 7 Thermal 53 | 14 10 29 Explosive . | . . . Electromagnetic 13 | . . 13 Robot Hit Streak 11 | 1 2 11 Robot Miss Streak 4 | 3 1 4 Penetration Max . | . . . Secondary Targets 2 | . . 2 Max Gunslinging Chain 1 | . . 1 Shots Hit Robots 37 | 4 4 29 Core Hits 16 | 1 4 11 Critical Kills . | . . . Critical Parts Destroyed . | . . . Critical Strikes 1 | . . 1 Blast 1 | . . 1 Melee Attacks . | . . . Impact . | . . . Slashing . | . . . Piercing . | . . . Sneak Attacks . | . . . Combat Hostiles . | . . . Follow-up Attacks . | . . . Damage Inflicted 605 | 66 99 440 Guns 359 | 66 22 271 Cannons 172 | . 52 120 Explosions 49 | . . 49 Melee . | . . . Ramming 25 | . 25 . Kinetic 172 | . 52 120 Thermal 275 | 66 22 187 Explosive . | . . . Electromagnetic 133 | . . 133 Impact . | . . . Slashing . | . . . Piercing . | . . . Highest Corruption . | . . . Average Corruption . | . . . Corruption Purged . | . . . Corruption Blocked . | . . . Overload Shots . | . . . Overflow Damage 18 | . . 18 Projectiles . | . . . Explosions 18 | . . 18 Melee . | . . . Knockbacks 1 | . 1 . Impact . | . . . Kinetic 1 | . 1 . Secondary . | . . . Self-Inflicted Damage 46 | . 11 35 Shots 1 | . . 1 Rammed 6 | . 6 . Targets Rammed 6 | . 6 . Kicked . | . . . Crushed . | . . . Highest Temperature 360 | 92 45 360 Average Temperature 75 | 55 15 97 Received Heat Transfer 93 | . . 93 Effects 1 | . . 1 Energy Bleed 1 | . . 1 Siege Activations . | . . . Robots Corrupted . | . . . Combat Hostiles . | . . . Parts Fried . | . . . Impact Corruptions . | . . . Robots Melted . | . . . Combat Hostiles . | . . . Parts Melted 1 | . . 1 Heat Transferred 612 | 150 50 412 Parts Sabotaged . | . . . Parts Stolen . | . . . Parts Stripped . | . . . Power Chain Reactions 1 | . . 1 Alert | -11 -10 -10 ------- Run | Yrd Mat Min Peak Influence 100 | 5 95 100 Initial 36 | . 3 36 Average 44 | 1 30 56 Maximum Alert Level . | . . . Low Security (%) 100 | 100 100 100 Level 1 . | . . . Level 2 . | . . . Level 3 . | . . . Level 4 . | . . . Level 5 . | . . . High Security . | . . . Max Security . | . . . Squads Dispatched . | . . . Investigation . | . . . Extermination . | . . . Reinforcement . | . . . Assault . | . . . Garrison . | . . . Intercept . | . . . Searches Triggered . | . . . Construction Impeded . | . . . Haulers Reinforced . | . . . Active Scanning Responses . | . . . Cargo Convoy Interrupts . | . . . Stealth | -11 -10 -10 --------- Run | Yrd Mat Min Distress Signals 1 | . . 1 Communications Jammed . | . . . Distress Signals . | . . . Times Spotted 14 | . 6 8 Peak Tracking Total 5 | . 5 3 Tactical Retreats 1 | . 1 . Traps | -11 -10 -10 ------- Run | Yrd Mat Min Traps Triggered . | . . . Indirectly . | . . . Trap Hack Attempts . | . . . Triggered . | . . . Disarmed . | . . . Reprogrammed . | . . . Reused . | . . . Traps Extracted . | . . . Installed . | . . . Triggered . | . . . Machines | -11 -10 -10 ---------- Run | Yrd Mat Min Machines Disabled . | . . . Max in Single Turn . | . . . Machines Repaired . | . . . Machines Dismantled . | . . . Machines Sabotaged . | . . . Overloaded Fab Kills . | . . . Hacking | -11 -10 -10 --------- Run | Yrd Mat Min Machines Accessed 4 | . 3 1 Terminals 3 | . 2 1 Fabricators . | . . . Repair Stations . | . . . Recycling Units 1 | . 1 . Scanalyzers . | . . . Garrison Access . | . . . Total Hacks 11 | . 9 2 Successful 6 | . 4 2 Failed 5 | . 5 . Catastrophic 1 | . 1 . Database Lockouts . | . . . Manual 5 | . 3 2 Terminals 6 | . 4 2 Fabricators . | . . . Repair Stations . | . . . Recycling Units 5 | . 5 . Scanalyzers . | . . . Garrison Access . | . . . Terminal Hacks 1 | . 1 . Robot Analysis 1 | . 1 . Fabricator Hacks . | . . . Repair Station Hacks . | . . . Recycling Unit Hacks 2 | . 2 . Report Inventory 1 | . 1 . Retrieve Components 1 | . 1 . Scanalyzer . | . . . Garrison Access Hacks . | . . . Unauthorized Hacks 3 | . 1 2 Terminals 3 | . 1 2 Assimilate 1 | . . 1 Botnet 2 | . 1 1 Fabricators . | . . . Repair Stations . | . . . Recycling Units . | . . . Scanalyzers . | . . . Garrison Access . | . . . Data Cores Recovered . | . . . Used . | . . . Hacking Detections 3 | . 2 1 Full Trace Events . | . . . Feedback Events . | . . . Feedback Blocked . | . . . Robot Schematics Acquired . | . . . Robots Built . | . . . Authchips . | . . . Time . | . . . Total Robot Build Rating . | . . . Part Schematics Acquired . | . . . Parts Built . | . . . Authchips . | . . . Time . | . . . Total Part Build Rating . | . . . Parts Repaired . | . . . Time . | . . . Parts Recycled . | . . . Recycled Matter . | . . . Retrieved Matter . | . . . Retrieved Components 3 | . 3 . Parts Scanalyzed . | . . . Part Schematics Acquired . | . . . Parts Damaged . | . . . Bothacking | -11 -10 -10 ------------ Run | Yrd Mat Min Used RIF Installer . | . . . Robots Hacked . | . . . Non-combat . | . . . Combat . | . . . Robot Hacks Applied . | . . . Relay Couplers Released . | . . . Fabnet Peak Effective % . | . . . Robots Rewired . | . . . Allies Hacked . | . . . Hacks Repelled . | . . . Allies | -11 -10 -10 -------- Run | Yrd Mat Min Total Allies . | . . . Largest Group . | . . . Highest-Rated Group . | . . . Highest-Rated Ally . | . . . Total Orders . | . . . Ally Attacks . | . . . Total Damage . | . . . Kills . | . . . Allies Corrupted . | . . . Allies Melted . | . . . Intel | -11 -10 -10 ------- Run | Yrd Mat Min Robot Analysis Total 1 | . 1 . Derelict Logs Recovered 2 | . . 2 Drone Launches . | . . . Drone Recoveries . | . . . Exploration | -11 -10 -10 ------------- Run | Yrd Mat Min Turns Passed 1100 | 113 264 723 Spaces Moved 851 | 75 202 574 Core 8 | 2 . 6 Treads . | . . . Legs . | . . . Wheels 843 | 73 202 568 Hover . | . . . Flight . | . . . Fastest Speed 50 | 50 100 100 Average Speed 100 | 98 100 100 Slowest Speed 150 | 100 100 150 Overloaded Moves . | . . . Propulsion Burnouts . | . . . Robots Hopped . | . . . Cave-ins Triggered . | . . . Exploration Rate (%) 34 | 4 28 70 Regions Visited 2 Branch Regions 1 Pre-discovered Areas 1 | . . 1 Known Exits Taken . | . . . Unknown Exits Taken 2 | 1 1 . Scrap Searched 1 | . . 1 Spaces Dug 12 | . 5 7 Terrain Destroyed 17 | . 6 11 Melee . | . . . Projectile 13 | . 6 7 AOE 4 | . . 4 Terrain Rammed . | . . . Walls Destroyed . | . . . Machines Disabled . | . . . Actions | -11 -10 -10 --------- Run | Yrd Mat Min Total 990 | 96 237 657 Wait 54 | . 10 44 Move 849 | 74 201 574 Hop . | . . . Pick Up 13 | 7 4 2 Fast Attach 9 | 7 . 2 Attach 1 | . . 1 Detach . | . . . Swap 8 | . 4 4 Drop 5 | 1 2 2 Fire 45 | 7 10 28 Melee . | . . . Ram 6 | . 6 . Kick . | . . . Crush . | . . . Escape Stasis . | . . . Rewire . | . . . Trap . | . . . Miscellaneous . | . . . Route ------- -11/Scrapyard -10/Materials -10/Mines (discovered 2 exits: [*Mat x2]) History --------- Turn | Location | Event 34 | -11/Scrapyard | Discovered new exit (range 15) 114 | -11/Scrapyard | Entered Materials 230 | -10/Materials | Discovered new exit (range 15) 322 | -10/Materials | Build established: Mutant 378 | -10/Materials | Entered Mines 378 | -10/Mines | Discovered new exit (range 10) 380 | -10/Mines | Met a Derelict bent on vengeance 581 | -10/Mines | Discovered new exit (range 9) 620 | -10/Mines | Learned location of Storage (-9) 818 | -10/Mines | Learned Materials non-interactive machine intel 1081 | -10/Mines | Assembled infested the area 1090 | -10/Mines | Core integrity fell below 50% 1097 | -10/Mines | Core integrity fell below 20% 1101 | -10/Mines | Destroyed by D-53 Grenadier with Mini Grenade Launcher Last Messages --------------- >>Trojan(Botnet) Trojan loaded successfully. Testing... Terminal linked with 0 systems. Awaiting botnet instructions. 01054_ Connecting with Terminal... 01081_ ALERT: Infestation in the mines, dispatching Demolisher response squad. 01089_ C-30 ARC bursts open, deploying its payload. 01089_ D-53 Grenadier unfolds itself. 01089_ Lgt. Ion Engine destroyed. 01092_ Particle Gun destroyed. 01092_ Com. Wheel destroyed. 01097_ U-05 Engineer lays Concrete. 01097_ Lgt. Assault Rifle destroyed. 01098_ U-05 Engineer lays Concrete. 01099_ The unstable cave ceiling collapses. 01100_ U-05 Engineer builds a Wall. 01101_ The unstable cave ceiling collapses. Map ----- +----------------------------------------------------+ | | | | | | | | | | | | | | | | | | | | | | | | | | | | | | | | | | | | | | | | | ??????????????????????????# ####??????#??#?? | | ?????????????????????????## #??#????#???? | | ????????????????????????## #???????#???? | | ????????????????????????# ####?????????## | | ?????????????????######### d ##?#??#???# | | ?????????? @ d ########### | | ?????????????????########## u "%*=%*= [ | | ?????????????????????????# # ####=##### | | ?????????????????????#???# ## ##??# #??## | | ?????????????????????????#### #######???# #???# | | ????????????????????????????#####???????#?# ##??# | | ????????????????????????????????#??#??????# ##??## | | ?????????????????????????#??????#????????## ###### | | ???????????????????????????????#?##???????# % | | ?????????????????????????????????????###?## ###### | | ????????????????????????????????###### ## #???# | | ????????????????????????????????# #???# | | ??????????????????????????????????### ##??## | | ????????????????????????????????????## ##???#? | | ?????????????????????????????????????## ##?????? | | ??????????????????????????????????????# ##?????## | | ????????????????????????????????? ????# #????#??? | | ??????????????????????????????????#####! ##??#?#?? | | ??????????????????????????????????# %#???#??#? | | ?????????????????????????????????## ! ####????? | | ?????????????????????????????#????# ###### ###?? | | ??????????????????????????????????# #????# ##?# | | ????????????????????????? ????????# #???## ### | | ??????????????????????????????????# #????# ### | | ?????????????????????????????????## ##???# < | +----------------------------------------------------+ Best States ------------- Heat Dissipation 25 Energy Generation 10 Energy Capacity 125 Matter Stores 300 Matter Capacity 300 Sight Range 16 Terrain Scan Range 14 Terrain Scan Density 10 Evasion (%) 40 Item Schematics ----------------- None Robot Schematics ------------------ None Fabricated ------------ Nothing Alien Tech Used ----------------- None Achievements -------------- None Challenges ------------ None Game ------ Seed SegregatorCommBlaster Manual? 0 Play Time 00:18:35 Cumulative 21.2 hours Start 2024.05.26 @ 23:03:16 End 2024.05.26 @ 23:23:36 Sessions 1 Manual Loads 0 Difficulty Rogue Special Mode None Game No. 27 Rogue 27 Adventurer 0 Explorer 0 Win Type - Total 0 Types 0/0/0/0/0/0/0/0/0 Lore% 10 Gallery% 20 Achievement% 19 Wizard Run 0 Options --------- Layout 1 ASCII 0 Keyboard 1 Movement Numpad Keybinds 0 Fullscreen 2 Font 24/Crisp Map View 50x35 Zoom Use 0% Tactical HUD 1 Map Filters NONE Filters NONE Steam 1 RUN: 3a5d4049-2843-42db-936c-f0ed3ee2430d